bitfinex/quotes_BTCUSD_20240817
["timestamp","ask_amount","ask_price","bid_price","bid_amount"]
[1723930336321,1.39178211,59312.0,59288.0,0.0108454]
[1723930336322,1.84568111,59312.0,59304.0,0.071664]
[1723930336523,1.84568111,59312.0,59311.0,9.1e-07]
[1723930336524,2.12158011,59312.0,59311.0,9.1e-07]
[1723930336732,2.40101779,59312.0,59311.0,9.1e-07]
[1723930336938,2.41301779,59312.0,59311.0,9.1e-07]
[1723930337175,2.68633262,59312.0,59311.0,9.1e-07]
[1723930337489,2.68633262,59312.0,59288.0,0.0108454]
[1723930337490,0.885447,59292.0,59288.0,0.0108454]
[1723930337715,1.0174024,59292.0,59288.0,0.0108454]
[1723930337896,1.44330223,59292.0,59288.0,0.0108454]
[1723930338117,1.0366277,59292.0,59291.0,0.004264]
[1723930338524,1.0356277,59292.0,59291.0,0.004264]
[1723930339347,1.16607821,59292.0,59291.0,0.004264]
[1723930339551,1.0126277,59292.0,59291.0,0.004264]
[1723930340114,1.26009498,59292.0,59291.0,0.004264]
[1723930340292,1.19179498,59292.0,59291.0,0.004264]
[1723930340490,1.0256277,59292.0,59291.0,0.004264]
[1723930340789,1.0376277,59292.0,59291.0,0.004264]
[1723930341216,1.0376277,59292.0,59291.0,0.070764]
[1723930344108,1.2906127,59292.0,59291.0,0.070764]
[1723930346958,1.3582247,59292.0,59291.0,0.070764]
[1723930347154,1.50954437,59292.0,59291.0,0.070764]
[1723930350643,1.1052397,59292.0,59291.0,0.070764]
[1723930350845,0.9376277,59292.0,59291.0,0.153564]
[1723930352546,1.0376277,59292.0,59291.0,0.153564]
[1723930353476,1.005447,59292.0,59291.0,0.153564]
[1723930354328,0.652462,59292.0,59291.0,0.153564]
[1723930354528,0.025,59292.0,59291.0,0.153564]
[1723930354701,0.404477,59292.0,59291.0,0.153564]
[1723930354893,0.025,59292.0,59291.0,0.153564]
[1723930355856,0.012,59292.0,59291.0,0.280058]
[1723930356055,0.012,59292.0,59291.0,0.153564]
[1723930356362,0.008,59292.0,59291.0,0.153564]
[1723930356653,0.014,59292.0,59291.0,0.153564]
[1723930358039,0.014,59292.0,59291.0,0.533047]
[1723930358411,0.014,59292.0,59291.0,0.280058]
[1723930358605,0.014,59292.0,59291.0,0.533047]
[1723930359184,0.006,59292.0,59291.0,0.533047]
[1723930359418,0.126484,59296.0,59291.0,0.384747]
[1723930359598,0.126484,59296.0,59293.0,0.1493]
[1723930359837,0.126479,59298.0,59294.0,0.1493]
[1723930360058,0.126479,59298.0,59295.0,0.0828]
[1723930360259,0.252958,59299.0,59296.0,0.1493]
[1723930360260,0.126481,59297.0,59296.0,0.1493]
[1723930361522,0.002,59298.0,59297.0,0.1393]
[1723930361735,0.128479,59298.0,59297.0,0.1393]
[1723930362144,0.128479,59298.0,59297.0,0.265781]
[1723930362145,0.002,59298.0,59297.0,0.265781]
[1723930362344,0.002,59298.0,59297.0,0.1393]
[1723930362724,0.126473,59301.0,59298.0,0.1393]
[1723930362923,0.126473,59301.0,59299.0,0.0642]
[1723930363332,0.126475,59300.0,59299.0,0.0642]
[1723930363599,0.126475,59300.0,59299.0,0.1393]
[1723930364414,0.126475,59300.0,59296.0,0.126483]
[1723930364415,0.134473,59301.0,59298.0,0.1393]
[1723930364618,0.126473,59301.0,59298.0,0.1393]
[1723930364820,0.1245,59307.0,59301.0,0.0751]
[1723930365110,0.126471,59302.0,59301.0,0.0751]
[1723930365344,0.379413,59302.0,59301.0,0.0751]
[1723930365573,0.126468,59304.0,59302.0,0.1393]
[1723930365771,0.126467,59304.0,59303.0,0.1393]
[1723930366673,0.252926,59306.0,59303.0,0.0751]
[1723930366927,0.126464,59305.0,59304.0,0.0642]
[1723930367509,0.379393,59305.0,59304.0,0.0642]
[1723930368473,0.379393,59305.0,59304.0,0.1393]
[1723930368474,0.126464,59305.0,59304.0,0.1393]
[1723930369078,0.133464,59305.0,59304.0,0.1393]
[1723930369516,0.395393,59305.0,59304.0,0.1393]
[1723930369919,0.016,59305.0,59304.0,0.1393]
[1723930370401,0.142464,59305.0,59304.0,0.1393]
[1723930370987,0.395393,59305.0,59304.0,0.1393]
[1723930372714,0.142464,59305.0,59304.0,0.1393]
[1723930373367,0.143288,59305.0,59304.0,0.1393]
[1723930373687,0.016824,59305.0,59304.0,0.1393]
[1723930374115,0.016824,59305.0,59304.0,0.265767]
[1723930374632,0.016824,59305.0,59304.0,0.1393]
[1723930374864,0.009824,59305.0,59304.0,0.1393]
[1723930375091,0.012824,59305.0,59304.0,0.1393]
[1723930375343,0.003824,59305.0,59304.0,0.1393]
[1723930375639,0.008824,59305.0,59304.0,0.265767]
[1723930376150,0.008824,59305.0,59304.0,0.1393]
[1723930376874,0.008824,59305.0,59304.0,0.265767]
[1723930378249,0.008824,59305.0,59304.0,0.518701]
[1723930379454,0.008824,59305.0,59304.0,0.771635]
[1723930379916,0.008824,59305.0,59304.0,0.518701]
[1723930382492,0.008824,59305.0,59304.0,0.94318954]
[1723930382733,0.008824,59305.0,59304.0,0.69025554]
[1723930383194,0.008824,59305.0,59304.0,0.94318954]
[1723930386140,0.008824,59305.0,59304.0,0.69025554]
[1723930386603,0.008824,59305.0,59304.0,0.94318954]
[1723930388846,0.008824,59305.0,59304.0,1.19612354]
[1723930389324,0.003824,59305.0,59304.0,1.19612354]
[1723930389583,0.002824,59305.0,59304.0,1.19612354]
[1723930389859,0.003824,59305.0,59304.0,1.19812354]
[1723930390114,0.001824,59305.0,59304.0,1.19812354]
[1723930391316,0.002824,59305.0,59304.0,1.20212354]
[1723930391567,0.001824,59305.0,59304.0,1.20012354]
[1723930392031,0.002824,59305.0,59304.0,1.20212354]
[1723930395011,0.002824,59305.0,59304.0,1.20312354]
[1723930395241,0.002824,59305.0,59304.0,1.30312354]
[1723930398868,0.002824,59305.0,59304.0,1.39762354]
[1723930416437,0.002824,59305.0,59304.0,1.65055754]
[1723930416639,0.002824,59305.0,59304.0,1.39762354]
[1723930417138,0.03268848,59317.0,59316.0,0.473823]
[1723930417342,0.08188163,59317.0,59316.0,0.473823]
[1723930417549,0.03268848,59317.0,59316.0,0.473823]
[1723930418263,0.03968848,59317.0,59316.0,0.473823]
[1723930418765,0.03968848,59317.0,59316.0,0.379323]
[1723930419217,0.04468848,59317.0,59316.0,0.379323]
[1723930420624,0.04468848,59317.0,59316.0,0.126441]
[1723930420959,0.08948848,59317.0,59316.0,0.126441]
[1723930421607,0.09031248,59317.0,59316.0,0.126441]
[1723930429585,0.04551248,59317.0,59316.0,0.126441]
[1723930432144,0.04551248,59317.0,59316.0,0.379323]
[1723930437034,0.04551248,59317.0,59316.0,0.126441]
[1723930441279,0.04551248,59317.0,59316.0,0.379323]
[1723930443754,0.04551248,59317.0,59316.0,0.126441]
[1723930443932,0.09582566,59317.0,59316.0,0.126441]
[1723930444748,0.09587319,59317.0,59316.0,0.126441]
[1723930445181,0.09587319,59317.0,59316.0,0.1273474]
[1723930445804,0.06318471,59317.0,59316.0,0.3802294]
[1723930446007,0.06318471,59317.0,59316.0,0.4461294]
[1723930446497,0.06318471,59317.0,59316.0,0.94666594]
[1723930446498,0.012824,59317.0,59316.0,0.94666594]
[1723930448595,0.007824,59317.0,59316.0,0.94666594]
[1723930448800,0.012824,59317.0,59316.0,0.94666594]
[1723930449359,0.005824,59317.0,59316.0,0.94666594]
[1723930449541,0.005824,59317.0,59316.0,0.94766594]
[1723930449739,0.012824,59317.0,59316.0,0.94766594]
[1723930450083,0.005824,59317.0,59316.0,0.94666594]
[1723930450281,0.008824,59317.0,59316.0,0.94666594]
[1723930450545,0.008824,59317.0,59316.0,1.19954794]
[1723930451361,0.005824,59317.0,59316.0,1.19954794]
[1723930452140,0.000824,59317.0,59316.0,1.19954794]
[1723930452350,0.000824,59317.0,59316.0,1.20054794]
[1723930453202,0.002824,59317.0,59316.0,1.20054794]
[1723930456690,0.002824,59317.0,59316.0,1.30154794]
[1723930457335,0.000824,59317.0,59316.0,1.30154794]
[1723930457744,0.000824,59317.0,59316.0,1.30454794]
[1723930458797,0.000824,59317.0,59316.0,1.30354794]
[1723930459222,0.001824,59317.0,59316.0,1.30454794]
[1723930459444,0.000824,59317.0,59316.0,1.30054794]
[1723930459652,0.001824,59317.0,59316.0,1.30854794]
[1723930459866,0.00241818,59317.0,59316.0,1.31254794]
[1723930460086,0.00141818,59317.0,59316.0,1.30654794]
[1723930460310,0.00141818,59317.0,59316.0,1.30454794]
[1723930460524,0.00241818,59317.0,59316.0,1.31054794]
[1723930461640,0.00241818,59317.0,59316.0,1.56542994]
[1723930461846,0.00241818,59317.0,59316.0,1.56742994]
[1723930462726,0.00241818,59317.0,59316.0,1.58642994]
[1723930463919,0.00241818,59317.0,59316.0,1.59042994]
[1723930464122,0.00241818,59317.0,59316.0,1.64100254]
[1723930464334,0.00241818,59317.0,59316.0,1.59042994]
[1723930464536,0.00241818,59317.0,59316.0,1.64100254]
[1723930465121,0.00241818,59317.0,59316.0,1.63700254]
[1723930465577,0.00241818,59317.0,59316.0,1.58642994]
[1723930466195,0.00241818,59317.0,59316.0,1.59042994]
[1723930467893,0.00241818,59317.0,59316.0,1.64096202]
[1723930468096,0.00241818,59317.0,59316.0,1.59042994]
[1723930468709,0.00241818,59317.0,59316.0,1.64096202]
[1723930469020,0.00241818,59317.0,59316.0,1.59042994]
[1723930469218,0.00241818,59317.0,59316.0,1.84331194]
[1723930469986,0.00241818,59317.0,59316.0,1.91911006]
[1723930470197,0.00241818,59317.0,59316.0,1.8938178]
[1723930470402,0.00241818,59317.0,59316.0,1.84331194]
[1723930470609,0.00241818,59317.0,59316.0,1.83931194]
[1723930470741,0.00241818,59317.0,59316.0,1.84331194]
[1723930471145,0.00241818,59317.0,59316.0,1.8938178]
[1723930473738,0.00241818,59317.0,59316.0,1.84331194]
[1723930474915,0.00141818,59317.0,59316.0,1.83931194]
[1723930475123,0.00041818,59317.0,59316.0,1.83331194]
[1723930475327,0.00041818,59317.0,59316.0,1.84731194]
[1723930475328,0.00141818,59317.0,59316.0,1.84731194]
[1723930475548,0.00241818,59317.0,59316.0,1.84431194]
[1723930475755,0.00241818,59317.0,59316.0,1.9088178]
[1723930476001,0.00241818,59317.0,59316.0,1.8978178]
[1723930476195,0.00341818,59317.0,59316.0,1.90978398]
[1723930478225,0.00341818,59317.0,59316.0,1.93502]
[1723930478834,0.00341818,59317.0,59316.0,1.85931194]
[1723930480789,0.00341818,59317.0,59316.0,2.11219394]
[1723930480993,0.00341818,59317.0,59316.0,2.52640393]
[1723930481445,0.00341818,59317.0,59316.0,2.187902]
[1723930482020,0.00341818,59317.0,59316.0,2.52638134]
[1723930482432,0.00341818,59317.0,59316.0,2.52622728]
[1723930482930,0.00341818,59317.0,59316.0,2.54425347]
[1723930483154,0.00341818,59317.0,59316.0,2.46854541]
[1723930483355,0.00341818,59317.0,59316.0,2.5442192]
[1723930484348,0.00241818,59317.0,59316.0,2.46854541]
[1723930484550,0.00141818,59317.0,59316.0,2.45454541]
[1723930485118,0.00141818,59317.0,59316.0,2.54376505]
[1723930485253,0.00041818,59317.0,59316.0,2.44209059]
[1723930485684,0.00041818,59317.0,59316.0,2.48988059]
[1723930485875,0.00041818,59317.0,59316.0,2.50388059]
[1723930486080,0.00041818,59317.0,59316.0,2.48988059]
[1723930486418,0.00041818,59317.0,59316.0,2.50388059]
[1723930486843,0.00041818,59317.0,59316.0,2.48988059]
[1723930487312,0.00041818,59317.0,59316.0,2.50388059]
[1723930487464,0.00041818,59317.0,59316.0,2.48988059]
[1723930487666,0.00041818,59317.0,59316.0,2.50388059]
[1723930488408,0.00041818,59317.0,59316.0,2.60477988]
[1723930489745,0.00041818,59317.0,59316.0,2.60457531]
[1723930490967,0.00041818,59317.0,59316.0,2.60057531]
[1723930491170,0.00041818,59317.0,59316.0,2.60457531]
[1723930492483,0.000826,59331.0,59330.0,1.137703]
[1723930492633,0.000826,59331.0,59330.0,1.50375754]
[1723930493162,0.081726,59331.0,59330.0,1.50375754]
[1723930493771,0.081726,59331.0,59330.0,1.51275754]
[1723930493971,0.081726,59331.0,59330.0,1.52375754]
[1723930495992,0.081726,59331.0,59330.0,1.5340132]
[1723930496193,0.000826,59331.0,59330.0,1.5340132]
[1723930498305,0.000826,59331.0,59330.0,1.5350132]
[1723930500720,0.000826,59331.0,59330.0,1.5360132]
[1723930500921,0.000826,59331.0,59330.0,1.5370132]
[1723930502027,0.000826,59331.0,59330.0,1.5350132]
[1723930502276,0.000826,59331.0,59330.0,1.5390132]
[1723930504177,0.000826,59331.0,59330.0,1.5350132]
[1723930504513,0.000826,59331.0,59330.0,1.5390132]
[1723930509784,0.000826,59331.0,59330.0,1.5350132]
[1723930510195,0.000826,59331.0,59330.0,1.5390132]
[1723930511189,0.000826,59331.0,59330.0,1.4405132]
[1723930511405,0.000826,59331.0,59330.0,1.5350132]
[1723930511603,0.000826,59331.0,59330.0,1.4405132]
[1723930511811,0.000826,59331.0,59330.0,1.5350132]
[1723930514228,0.077126,59331.0,59330.0,1.5350132]
[1723930514588,0.077126,59331.0,59330.0,1.5370132]
[1723930514797,0.000826,59331.0,59330.0,1.5370132]
[1723930515574,0.000826,59331.0,59330.0,1.5390132]
[1723930515991,0.000826,59331.0,59330.0,1.5370132]
[1723930516194,0.000826,59331.0,59330.0,1.5600132]
[1723930516451,0.000826,59331.0,59330.0,1.63591215]
[1723930516582,0.000826,59331.0,59330.0,1.63791215]
[1723930516778,0.000826,59331.0,59330.0,1.99196931]
[1723930517024,0.000826,59331.0,59330.0,1.98796931]
[1723930517340,0.000826,59331.0,59330.0,1.98760278]
[1723930517647,0.000826,59331.0,59330.0,1.98760322]
[1723930517869,0.000826,59331.0,59330.0,1.98765558]
[1723930518197,0.000826,59331.0,59330.0,1.63391215]
[1723930518401,0.000826,59331.0,59330.0,1.98766118]
[1723930519498,0.000826,59331.0,59330.0,1.98772552]
[1723930523860,0.000826,59331.0,59330.0,1.89322552]
[1723930524068,0.000826,59331.0,59330.0,1.54141215]
[1723930524281,0.000826,59331.0,59330.0,1.98932348]
[1723930524570,0.000826,59331.0,59330.0,1.5600132]
[1723930524810,0.000826,59331.0,59330.0,1.98923411]
[1723930526262,0.000826,59331.0,59330.0,1.99123411]
[1723930526938,0.000826,59331.0,59330.0,1.98723411]
[1723930527198,0.000826,59331.0,59330.0,1.98923411]
[1723930527487,0.000826,59331.0,59330.0,1.98723411]
[1723930530243,0.000826,59331.0,59330.0,1.98923411]
[1723930530725,0.000826,59331.0,59330.0,1.98723411]
[1723930530940,0.000826,59331.0,59330.0,1.98923411]
[1723930531674,0.000826,59331.0,59330.0,1.98723411]
[1723930533872,0.000826,59331.0,59330.0,1.98923411]
[1723930534124,0.000826,59331.0,59330.0,1.98723411]
[1723930535788,0.000826,59331.0,59330.0,1.98923411]
[1723930536032,0.000826,59331.0,59330.0,2.12883411]
[1723930536281,0.000826,59331.0,59330.0,2.04913411]
[1723930538115,0.000826,59331.0,59330.0,2.04981992]
[1723930538533,0.000826,59331.0,59330.0,2.05181992]
[1723930538733,0.000826,59331.0,59330.0,2.05381992]
[1723930538967,0.000826,59331.0,59330.0,1.69982174]
[1723930539322,0.000826,59331.0,59330.0,2.0544032]
[1723930539523,0.000826,59331.0,59330.0,1.9925032]
[1723930539705,0.076726,59331.0,59330.0,1.9925032]
[1723930539907,0.000826,59331.0,59330.0,1.9925032]
[1723930540315,0.000826,59331.0,59330.0,1.9885032]
[1723930540721,0.000826,59331.0,59330.0,1.9905032]
[1723930541142,0.000826,59331.0,59330.0,1.9885032]
[1723930544743,0.079726,59331.0,59330.0,1.2383036]
[1723930544944,0.079726,59331.0,59330.0,1.2821902]
[1723930545346,0.124526,59331.0,59330.0,1.2821902]
[1723930546850,0.079726,59331.0,59330.0,1.2821902]
[1723930548016,0.124526,59331.0,59330.0,0.31796554]
[1723930548219,0.124526,59331.0,59330.0,0.146411]
[1723930548422,0.124526,59331.0,59330.0,0.02]
[1723930549222,0.124526,59331.0,59330.0,0.011]
[1723930549438,0.1237,59330.0,59329.0,0.126413]
[1723930550795,0.1237,59330.0,59329.0,0.127413]
[1723930552595,0.1237,59330.0,59329.0,0.130413]
[1723930555124,0.1237,59330.0,59329.0,0.004]
[1723930558634,0.1237,59330.0,59329.0,0.003]
[1723930559060,0.126411,59330.0,59327.0,0.126417]
[1723930559266,0.1259,59328.0,59324.0,0.252848]
[1723930559490,0.1259,59327.0,59326.0,0.126419]
[1723930561203,0.0763,59326.0,59324.0,0.006]
[1723930561410,0.1211,59325.0,59324.0,0.132424]
[1723930561630,0.1211,59325.0,59324.0,0.130424]
[1723930562046,0.1211,59325.0,59324.0,0.126424]
[1723930562842,0.0763,59327.0,59321.0,0.252858]
[1723930563048,0.0763,59325.0,59324.0,0.006]
[1723930563230,0.1211,59325.0,59324.0,0.014]
[1723930563802,0.247522,59325.0,59324.0,0.014]
[1723930564009,0.500366,59325.0,59324.0,0.014]
[1723930564991,0.75321,59325.0,59324.0,0.008]
[1723930566240,0.500366,59325.0,59324.0,0.014]
[1723930569691,0.75321,59325.0,59324.0,0.014]
[1723930569900,0.500366,59325.0,59324.0,0.014]
[1723930576656,0.455566,59325.0,59324.0,0.014]
[1723930579133,0.000825,59326.0,59325.0,0.126422]
[1723930579335,0.000825,59326.0,59324.0,0.140424]
[1723930579899,0.000825,59326.0,59324.0,0.132424]
[1723930580296,0.000825,59326.0,59325.0,0.007]
[1723930581136,0.000825,59326.0,59325.0,0.012]
[1723930581559,0.000825,59326.0,59325.0,0.005]
[1723930582480,0.000825,59326.0,59325.0,0.78571]
[1723930582684,0.000825,59326.0,59325.0,0.532866]
[1723930583865,0.000825,59326.0,59325.0,0.78571]
[1723930585378,0.000825,59326.0,59325.0,0.532866]
[1723930585583,0.000825,59326.0,59325.0,0.78571]
[1723930585993,0.000825,59326.0,59325.0,0.95726454]
[1723930587747,0.000825,59326.0,59325.0,1.21010854]
[1723930589511,0.000825,59326.0,59325.0,1.21110854]
[1723930589893,0.000825,59326.0,59325.0,1.58695254]
[1723930590213,0.000825,59326.0,59325.0,1.58895254]
[1723930590672,0.000825,59326.0,59325.0,1.58695254]
[1723930590930,0.000825,59326.0,59325.0,1.58595254]
[1723930591136,0.000825,59326.0,59325.0,1.57895254]
[1723930591248,0.000825,59326.0,59325.0,1.58595254]
[1723930591448,0.000825,59326.0,59325.0,1.59995254]
[1723930591647,0.000825,59326.0,59325.0,1.59195254]
[1723930591896,0.000825,59326.0,59325.0,1.57895254]
[1723930592099,0.000825,59326.0,59325.0,1.59295254]
[1723930592472,0.000825,59326.0,59325.0,1.57895254]
[1723930592650,0.000825,59326.0,59325.0,1.59295254]
[1723930593449,0.000825,59326.0,59325.0,1.84579654]
[1723930593679,0.000825,59326.0,59325.0,1.60095254]
[1723930594036,0.000825,59326.0,59325.0,1.58895254]
[1723930594234,0.000825,59326.0,59325.0,1.59095254]
[1723930594435,0.000825,59326.0,59325.0,1.60495254]
[1723930594619,0.000825,59326.0,59325.0,1.61523292]
[1723930594829,0.000825,59326.0,59325.0,1.61723292]
[1723930595238,0.000825,59326.0,59325.0,1.61323292]
[1723930595444,0.000825,59326.0,59325.0,1.86807692]
[1723930595643,0.000825,59326.0,59325.0,1.61523292]
[1723930596106,0.000825,59326.0,59325.0,1.86807692]
[1723930596269,0.000825,59326.0,59325.0,1.86607692]
[1723930596472,0.000825,59326.0,59325.0,1.61323292]
[1723930597714,0.000825,59326.0,59325.0,1.61523292]
[1723930598280,0.000825,59326.0,59325.0,1.61723292]
[1723930601020,0.4,59351.0,59346.0,0.001]
[1723930601242,0.4,59351.0,59350.0,1.19803354]
[1723930601450,0.4,59351.0,59350.0,1.56827054]
[1723930601649,0.4,59351.0,59350.0,1.66827054]
[1723930602057,0.39736325,59351.0,59350.0,1.67027054]
[1723930602264,0.39736325,59351.0,59350.0,1.67227054]
[1723930602887,0.39736325,59351.0,59350.0,1.68627054]
[1723930603720,0.39736325,59351.0,59350.0,1.70027054]
[1723930604123,0.39736325,59351.0,59350.0,1.68627054]
[1723930604639,0.39736325,59351.0,59350.0,1.60177054]
[1723930604855,0.39736325,59351.0,59350.0,1.69627054]
[1723930605707,0.39736325,59351.0,59350.0,1.68227054]
[1723930605920,0.39736325,59351.0,59350.0,1.67027054]
[1723930606100,0.39736325,59351.0,59350.0,1.68427054]
[1723930606334,0.39736325,59351.0,59350.0,1.68227054]
[1723930606535,0.39736325,59351.0,59350.0,1.69627054]
[1723930607590,0.39736325,59351.0,59350.0,1.69827054]
[1723930609391,0.39736325,59351.0,59350.0,1.69627054]
[1723930609759,0.39736325,59351.0,59350.0,1.69827054]
[1723930610912,0.39736325,59351.0,59350.0,1.70027054]
[1723930611721,0.39736325,59351.0,59350.0,1.70117694]
[1723930612170,0.39818725,59351.0,59350.0,1.70117694]
[1723930614425,0.39818725,59351.0,59350.0,1.69717694]
[1723930614652,0.39818725,59351.0,59350.0,1.60267694]
[1723930614888,0.47958725,59351.0,59350.0,1.08503994]
[1723930615058,0.47958725,59351.0,59350.0,0.1552744]
[1723930615907,0.47958725,59351.0,59350.0,0.1272744]
[1723930616108,0.47958725,59351.0,59350.0,0.0009064]
[1723930616329,0.47958725,59351.0,59350.0,0.1402744]
[1723930616688,0.47958725,59351.0,59350.0,0.1542744]
[1723930617154,0.47958725,59351.0,59350.0,0.0279064]
[1723930618048,0.47958725,59351.0,59350.0,0.0139064]
[1723930618352,0.60595325,59351.0,59350.0,0.0099064]
[1723930618500,0.47958725,59351.0,59350.0,0.0079064]
[1723930618852,0.47958725,59351.0,59350.0,0.0109064]
[1723930619046,0.47958725,59351.0,59350.0,0.0009064]
[1723930619463,0.60595325,59351.0,59350.0,0.0029064]
[1723930619763,0.60595325,59351.0,59350.0,0.0019064]
[1723930619764,0.47958725,59351.0,59350.0,0.0019064]
[1723930619959,0.47958725,59351.0,59350.0,0.0029064]
[1723930620190,0.48058725,59351.0,59350.0,0.0029064]
[1723930623568,0.60695325,59351.0,59350.0,0.0029064]
[1723930623774,0.48058725,59351.0,59350.0,0.0029064]
[1723930624813,0.48058725,59351.0,59350.0,0.0009064]
[1723930625013,0.48058725,59351.0,59350.0,0.0019064]
[1723930625634,0.47958725,59351.0,59350.0,0.0019064]
[1723930626072,0.60695325,59351.0,59350.0,0.0019064]
[1723930626840,0.90448625,59351.0,59350.0,0.0019064]
[1723930627005,1.15721925,59351.0,59350.0,0.0019064]
[1723930627599,1.15621925,59351.0,59350.0,0.0019064]
[1723930627804,1.15621925,59351.0,59350.0,0.0009064]
[1723930628991,1.15821925,59351.0,59350.0,0.0009064]
[1723930629186,1.25271925,59351.0,59350.0,0.0009064]
[1723930629466,1.25071925,59351.0,59350.0,0.0009064]
[1723930629667,1.25271925,59351.0,59350.0,0.0009064]
[1723930630312,1.15821925,59351.0,59350.0,0.0009064]
[1723930632351,1.55924984,59351.0,59350.0,0.0009064]
[1723930633259,1.55724984,59351.0,59350.0,0.0019064]
[1723930633502,1.55924984,59351.0,59350.0,0.0029064]
[1723930633981,1.55924984,59351.0,59350.0,0.0019064]
[1723930633982,1.55724984,59351.0,59350.0,0.0019064]
[1723930634460,1.55724984,59351.0,59350.0,0.0009064]
[1723930634865,1.55724984,59351.0,59350.0,0.0019064]
[1723930635101,1.55724984,59351.0,59350.0,0.0009064]
[1723930635319,1.55724984,59351.0,59350.0,0.0019064]
[1723930635851,1.55724984,59351.0,59350.0,0.0029064]
[1723930635852,1.56524984,59351.0,59350.0,0.0029064]
[1723930636259,1.55724984,59351.0,59350.0,0.0019064]
[1723930636838,1.56524984,59351.0,59350.0,0.0029064]
[1723930637279,1.59127168,59351.0,59350.0,0.0029064]
[1723930637910,1.60129633,59351.0,59350.0,0.0029064]
[1723930640023,1.56727449,59351.0,59350.0,0.0019064]
[1723930640424,1.82500749,59351.0,59350.0,0.0029064]
[1723930640770,1.82500749,59351.0,59350.0,0.0009064]
[1723930640771,1.82000749,59351.0,59350.0,0.0009064]
[1723930640921,1.99956203,59351.0,59350.0,0.0019064]
[1723930641132,1.99156203,59351.0,59350.0,0.0009064]
[1723930641580,1.99956203,59351.0,59350.0,0.0019064]
[1723930641767,2.0057042,59351.0,59350.0,0.0019064]
[1723930642139,2.0187042,59351.0,59350.0,0.0029064]
[1723930642609,2.0057042,59351.0,59350.0,0.0019064]
[1723930642765,1.83414966,59351.0,59350.0,0.0019064]
[1723930642919,1.84814966,59351.0,59350.0,0.0019064]
[1723930643712,1.84014966,59351.0,59350.0,0.0009064]
[1723930643941,1.83400749,59351.0,59350.0,0.0009064]
[1723930644164,1.84600749,59351.0,59350.0,0.0019064]
[1723930644339,1.88040246,59351.0,59350.0,0.0019064]
[1723930644514,2.051957,59351.0,59350.0,0.0019064]
[1723930644926,1.88040246,59351.0,59350.0,0.0019064]
[1723930647373,1.88340246,59351.0,59350.0,0.0019064]
[1723930647619,1.88040246,59351.0,59350.0,0.0019064]
[1723930647826,1.88140246,59351.0,59350.0,0.0019064]
[1723930647998,1.88040246,59351.0,59350.0,0.0019064]
[1723930648943,1.86640246,59351.0,59350.0,0.0019064]
[1723930649686,1.87940246,59351.0,59350.0,0.0019064]
[1723930649887,1.86740246,59351.0,59350.0,0.0009064]
[1723930650787,1.88140246,59351.0,59350.0,0.0009064]
[1723930652643,1.88240246,59351.0,59350.0,0.0009064]
[1723930652871,1.88140246,59351.0,59350.0,0.0009064]
[1723930654335,1.90740246,59351.0,59350.0,0.0009064]
[1723930654524,2.10551873,59351.0,59350.0,0.0009064]
[1723930654965,2.27807327,59351.0,59350.0,0.0009064]
[1723930655151,2.30210234,59351.0,59350.0,0.0009064]
[1723930655347,2.28910234,59351.0,59350.0,0.0009064]
[1723930655552,2.163957,59351.0,59350.0,0.0009064]
[1723930655895,2.177957,59351.0,59350.0,0.0009064]
[1723930656034,2.163957,59351.0,59350.0,0.0009064]
[1723930656436,2.177957,59351.0,59350.0,0.0009064]
[1723930656636,2.163957,59351.0,59350.0,0.0009064]
[1723930656844,2.177957,59351.0,59350.0,0.0009064]
[1723930657287,1.99440246,59351.0,59350.0,0.0009064]
[1723930657490,2.00640246,59351.0,59350.0,0.0009064]
[1723930657706,2.00740246,59351.0,59350.0,0.0009064]
[1723930658538,2.00840246,59351.0,59350.0,0.0009064]
[1723930658742,2.00640246,59351.0,59350.0,0.0009064]
[1723930659565,2.00840246,59351.0,59350.0,0.0009064]
[1723930659768,2.00640246,59351.0,59350.0,0.0009064]
[1723930660339,1.60903921,59351.0,59350.0,0.0009064]
[1723930662386,1.63548155,59351.0,59350.0,0.0009064]
[1723930662769,1.60903921,59351.0,59350.0,0.0009064]
[1723930664878,1.61103921,59351.0,59350.0,0.0009064]
[1723930665289,1.61303921,59351.0,59350.0,0.0009064]
[1723930667548,1.76363315,59351.0,59350.0,0.0009064]
[1723930667923,1.61303921,59351.0,59350.0,0.0009064]
[1723930668590,1.75963315,59351.0,59350.0,0.0009064]
[1723930669854,1.76163315,59351.0,59350.0,0.0009064]
[1723930670534,1.76363315,59351.0,59350.0,0.0009064]
[1723930671557,1.76368157,59351.0,59350.0,0.0009064]
[1723930672022,1.61303921,59351.0,59350.0,0.0009064]
[1723930673093,1.60903921,59351.0,59350.0,0.0009064]
[1723930674574,1.56423921,59351.0,59350.0,0.0009064]
[1723930679524,1.56623921,59351.0,59350.0,0.0009064]
[1723930680337,1.7339505,59351.0,59350.0,0.0009064]
[1723930680540,1.73498132,59351.0,59350.0,0.0009064]
[1723930681064,1.73398132,59351.0,59350.0,0.0009064]
[1723930681467,1.56423921,59351.0,59350.0,0.0009064]
[1723930682882,1.73404253,59351.0,59350.0,0.0009064]
[1723930683083,1.56423921,59351.0,59350.0,0.0009064]
[1723930683284,1.73404094,59351.0,59350.0,0.0009064]
[1723930683618,1.56423921,59351.0,59350.0,0.0009064]
[1723930683762,1.48283921,59351.0,59350.0,0.0009064]
[1723930692710,1.48383921,59351.0,59350.0,0.0009064]
[1723930692937,1.48283921,59351.0,59350.0,0.0009064]
[1723930693452,1.48383921,59351.0,59350.0,0.0009064]
[1723930693651,1.65376578,59351.0,59350.0,0.0009064]
[1723930693853,1.65276578,59351.0,59350.0,0.0009064]
[1723930694048,1.48383921,59351.0,59350.0,0.0009064]
[1723930694451,1.48283921,59351.0,59350.0,0.0009064]
[1723930694694,1.65439375,59351.0,59350.0,0.0009064]
[1723930694811,1.48283921,59351.0,59350.0,0.0009064]
[1723930697948,1.48383921,59351.0,59350.0,0.0009064]
[1723930698625,1.48283921,59351.0,59350.0,0.0009064]
[1723930699386,1.48383921,59351.0,59350.0,0.0009064]
[1723930699970,1.48283921,59351.0,59350.0,0.0009064]
[1723930701265,1.48383921,59351.0,59350.0,0.0009064]
[1723930701996,1.48283921,59351.0,59350.0,0.0009064]
[1723930702204,1.48383921,59351.0,59350.0,0.0009064]
[1723930704007,1.48283921,59351.0,59350.0,0.0009064]
[1723930705707,1.48383921,59351.0,59350.0,0.0009064]
[1723930705909,1.48283921,59351.0,59350.0,0.0009064]